[Event "Maria Albulet Memorial 2018"]
[Site "Braila"]
[Date "2018.11.03"]
[Round "1"]
[White "Uzuneanu, Gabriela"]
[Black "Bucur, Denisa-Andreea"]
[Result "0-1"]
[ECO "B21"]
[WhiteElo "1571"]
[BlackElo "2012"]
[Annotator "NA RC"]
[PlyCount "70"]
[EventDate "2018.11.03"]
[EventType "swiss"]
[EventCountry "ROU"]
[SourceTitle "playchess.com"]
[Source "ChessBase"]
[SourceQuality "1"]
[TimeControl "40/5400+30:900+30"]

1. e4 {[%emt 0:00:00]} c5 {[%emt 0:00:00]} 2. f4 {[%emt 0:00:00]} Nc6 {[%emt 0:00:00]} 3. Nf3 {[%emt 0:00:00]} g6 {[%emt 0:00:00]} 4. g3 {[%emt 0:00:00]} Bg7 {[%emt 0:00:02]} 5. Bg2 {[%emt 0:00:01]} d6 {[%emt 0:00:09]} 6. d3 {[%emt 0:00:39]} e6 {[%emt 0:01:37]} 7. Nc3 {[%emt 0:01:54]} Nge7 {[%emt 0:00:20]} 8. Bd2 {[%emt 0:01:25]} O-O {[%emt 0:00:21]} 9. O-O {[%emt 0:01:23]} Rb8 {[%emt 0:00:33]} 10. Rb1 {[%emt 0:03:02]} b5 {[%emt 0:01:04]} 11. h3 {[%emt 0:01:55]} b4 {[%emt 0:05:00]} 12. Ne2 {[%emt 0:00:18]} Qb6 {[%emt 0:02:21]} 13. Kh1 {[%emt 0:20:44]} Qa6 {[%emt 0:04:56]} 14. Nc1 {[%emt 0:05:34]} Bd7 {[%emt 0:14:21]} 15. g4 {[%emt 0:01:57]} f5 {[%emt 0:01:01]} 16. g5 {[%emt 0:11:53]} c4 {[%emt 0:15:52]} 17. Qe2 {[%emt 0:17:37]} c3 {[%emt 0:04:18]} 18. bxc3 {[%emt 0:01:51]} bxc3 {[%emt 0:00:08]} 19. Rxb8 {[%emt 0:00:05]} Rxb8 {[%emt 0:00:02]} 20. Be3 {[%emt 0:05:29]} Nb4 {[%emt 0:03:17]} 21. Bd4 {[%emt 0:05:02]} fxe4 {[%emt 0:03:39]} 22. dxe4 {[%emt 0:01:49]} Bb5 {[%emt 0:00:54]} 23. Qf2 {[%emt 0:00:25]} Bxd4 {[%emt 0:03:33]} 24. Nxd4 {[%emt 0:00:21]} Bxf1 {[%emt 0:00:23]} 25. Bxf1 {[%emt 0:00:06]} Qb6 {[%emt 0:02:02]} 26. Kg1 {[%emt 0:04:35]} e5 {[%emt 0:04:10]} 27. fxe5 {[%emt 0:00:17]} Rf8 {[%emt 0:00:22]} 28. Bc4+ {[%emt 0:02:55]} d5 {[%emt 0:00:14]} 29. Qe3 {[%emt 0:02:56]} dxc4 {[%emt 0:00:46]} 30. Qxc3 {[%emt 0:00:44]} Nxc2 {[%emt 0:00:32]} 31. Qxc4+ {[%emt 0:00:15]} Kh8 {[%emt 0:00:13]} 32. Ncb3 {[%emt 0:00:48]} Nxd4 {[%emt 0:00:07]} 33. Qxd4 {[%emt 0:01:18]} Nc6 {[%emt 0:00:43]} 34. Qxb6 {[%emt 0:00:42]} axb6 {[%emt 0:00:02]} 35. e6 {[%emt 0:00:11]} Re8 {[%emt 0:00:05]} 0-1

[Event "Maria Albulet Memorial 2018"]
[Site "Braila"]
[Date "2018.11.04"]
[Round "2"]
[White "Bucur, Denisa-Andreea"]
[Black "Mihailova, Alina"]
[Result "0-1"]
[ECO "E21"]
[WhiteElo "2012"]
[BlackElo "1790"]
[Annotator "NA RC"]
[PlyCount "113"]
[EventDate "2018.11.03"]
[EventType "swiss"]
[EventCountry "ROU"]
[SourceTitle "playchess.com"]
[Source "ChessBase"]
[SourceQuality "1"]
[TimeControl "40/5400+30:900+30"]

1. d4 {[%emt 0:00:00]} Nf6 {[%emt 0:00:00]} 2. Nf3 {[%emt 0:00:00]} e6 {[%emt 0:00:00]} 3. c4 {[%emt 0:00:00]} b6 {[%emt 0:00:00]} 4. Nc3 {[%emt 0:00:08]} Bb7 {[%emt 0:00:24]} 5. a3 {[%emt 0:00:12]} Be7 {[%emt 0:01:28]} 6. Bf4 {[%emt 0:01:30]} O-O {[%emt 0:02:17]} 7. Rc1 {[%emt 0:03:03]} d6 {[%emt 0:01:40]} 8. h3 {[%emt 0:02:22]} Nbd7 {[%emt 0:01:21]} 9. e3 {[%emt 0:00:11]} a6 {[%emt 0:02:38]} 10. Qc2 {[%emt 0:09:42]} c5 {[%emt 0:10:11]} 11. Be2 {[%emt 0:02:13]} Rc8 {[%emt 0:03:14]} 12. b3 {[%emt 0:11:59]} Qc7 {[%emt 0:07:27]} 13. O-O {[%emt 0:01:48]} Qb8 {[%emt 0:01:53]} 14. Rfd1 {[%emt 0:07:18]} Rfd8 {[%emt 0:01:25]} 15. Ng5 {[%emt 0:09:23]} Qa8 {[%emt 0:09:24]} 16. d5 exd5 {[%emt 0:00:30]} 17. Nxd5 {[%emt 0:07:34]} Bxd5 {[%emt 0:00:21]} 18. cxd5 {[%emt 0:03:40]} h6 {[%emt 0:02:45]} 19. Ne4 {[%emt 0:00:44]} Nxe4 {[%emt 0:03:15]} 20. Qxe4 {[%emt 0:00:04]} Bf8 {[%emt 0:00:17]} 21. Qf5 {[%emt 0:05:16]} b5 {[%emt 0:07:00]} 22. h4 {[%emt 0:15:59]} Qb7 {[%emt 0:05:59]} 23. h5 {[%emt 0:01:38]} Be7 {[%emt 0:02:05]} 24. g4 {[%emt 0:06:38]} Nf8 {[%emt 0:04:01]} 25. Kh2 {[%emt 0:04:20]} Qd7 {[%emt 0:02:01]} 26. Qd3 {[%emt 0:03:16]} Bh4 {[%emt 0:03:36]} 27. Rg1 {[%emt 0:03:09]} Qe7 {[%emt 0:02:59]} 28. Rg2 {[%emt 0:00:22]} Re8 {[%emt 0:02:12]} 29. Rcg1 {[%emt 0:00:51]} Bg5 {[%emt 0:00:15]} 30. Bg3 {[%emt 0:00:48]} Rcd8 {[%emt 0:01:48]} 31. Bd1 {[%emt 0:00:45]} Qe4 {[%emt 0:01:25]} 32. Qd2 {[%emt 0:00:27]} c4 {[%emt 0:03:49]} 33. f4 {[%emt 0:00:32]} Bf6 {[%emt 0:00:19]} 34. Bf2 {[%emt 0:00:09]} c3 {[%emt 0:00:19]} 35. Qe2 {[%emt 0:00:50]} Qxd5 {[%emt 0:03:14]} 36. g5 hxg5 37. fxg5 {[%emt 0:00:20]} Be5+ {[%emt 0:00:43]} 38. Kh1 {[%emt 0:00:32]} Bf4 {[%emt 0:02:39]} 39. Bc2 {[%emt 0:00:59]} Re5 {[%emt 0:03:42]} 40. Qg4 {[%emt 0:00:00]} Bxe3 {[%emt 0:00:00]} 41. Rd1 {[%emt 0:02:04]} Qe6 {[%emt 0:04:01]} 42. Qg3 {[%emt 0:02:55]} Bxf2 {[%emt 0:01:40]} 43. Rxf2 {[%emt 0:00:23]} Re1+ {[%emt 0:03:35]} 44. Rxe1 {[%emt 0:00:31]} Qxe1+ {[%emt 0:00:04]} 45. Kg2 {[%emt 0:00:07]} d5 {[%emt 0:01:20]} 46. h6 {[%emt 0:04:48]} g6 {[%emt 0:02:04]} 47. Qc7 {[%emt 0:06:04]} Rd7 {[%emt 0:01:16]} 48. Qf4 {[%emt 0:02:31]} Qe7 {[%emt 0:03:11]} 49. Bd3 {[%emt 0:00:46]} Ne6 {[%emt 0:01:01]} 50. h7+ {[%emt 0:00:38]} Kxh7 {[%emt 0:02:11]} 51. Qh4+ {[%emt 0:00:06]} Kg8 {[%emt 0:00:12]} 52. Rf6 {[%emt 0:00:11]} Ng7 {[%emt 0:02:04]} 53. Rxa6 {[%emt 0:00:56]} Ne6 {[%emt 0:02:54]} 54. Ra8+ {[%emt 0:00:22]} Rd8 {[%emt 0:00:11]} 55. Rxd8+ {[%emt 0:00:21]} Qxd8 {[%emt 0:00:05]} 56. Kf2 {[%emt 0:00:58]} d4 {[%emt 0:01:43]} 57. Qh3 {[%emt 0:00:13]} 0-1

[Event "Maria Albulet Memorial 2018"]
[Site "Braila"]
[Date "2018.11.04"]
[Round "2"]
[White "Nistor, Valentina"]
[Black "Hrib, Andrada-Ioana"]
[Result "1-0"]
[ECO "C05"]
[WhiteElo "1881"]
[BlackElo "1770"]
[Annotator "NA RC"]
[PlyCount "93"]
[EventDate "2018.11.03"]
[EventType "swiss"]
[EventCountry "ROU"]
[SourceTitle "playchess.com"]
[Source "ChessBase"]
[SourceQuality "1"]
[TimeControl "40/5400+30:900+30"]

1. e4 {[%emt 0:00:00]} e6 {[%emt 0:00:00]} 2. d4 {[%emt 0:00:00]} d5 {[%emt 0:00:00]} 3. Nd2 {[%emt 0:00:00]} Nf6 {[%emt 0:00:00]} 4. e5 {[%emt 0:00:00]} Nfd7 {[%emt 0:00:00]} 5. Bd3 {[%emt 0:00:07]} b6 {[%emt 0:00:00]} 6. c3 {[%emt 0:00:26]} Ba6 {[%emt 0:00:00]} 7. Bc2 {[%emt 0:09:18]} c5 {[%emt 0:00:39]} 8. Ne2 {[%emt 0:00:43]} Nc6 {[%emt 0:01:08]} 9. Nf3 {[%emt 0:01:12]} cxd4 {[%emt 0:09:43]} 10. cxd4 {[%emt 0:00:42]} Nb4 {[%emt 0:13:21]} 11. Bb1 {[%emt 0:01:49]} Rc8 {[%emt 0:01:35]} 12. a3 {[%emt 0:01:38]} Bxe2 {[%emt 0:04:13]} 13. Kxe2 {[%emt 0:02:29]} Nc6 {[%emt 0:01:05]} 14. Re1 {[%emt 0:04:59]} b5 {[%emt 0:05:17]} 15. Kf1 {[%emt 0:06:18]} h6 {[%emt 0:01:09]} 16. Bd3 {[%emt 0:06:26]} Qb6 {[%emt 0:02:55]} 17. Be3 {[%emt 0:03:41]} Be7 {[%emt 0:01:17]} 18. Rc1 {[%emt 0:01:03]} O-O {[%emt 0:00:50]} 19. Qd2 {[%emt 0:01:38]} Na5 {[%emt 0:09:57]} 20. Bxh6 {[%emt 0:12:50]} Rfe8 {[%emt 0:17:45]} 21. Rxc8 {[%emt 0:08:50]} Rxc8 {[%emt 0:00:01]} 22. Bg5 {[%emt 0:00:34]} Bf8 {[%emt 0:02:20]} 23. Qf4 {[%emt 0:01:12]} Nc4 {[%emt 0:02:45]} 24. Qh4 {[%emt 0:03:42]} g6 {[%emt 0:00:18]} 25. Rc1 {[%emt 0:07:01]} Qb7 {[%emt 0:03:39]} 26. Rc2 {[%emt 0:01:36]} a6 {[%emt 0:02:28]} 27. Bh6 {[%emt 0:02:43]} Bg7 {[%emt 0:01:05]} 28. Qg5 {[%emt 0:03:39]} Bxh6 {[%emt 0:07:13]} 29. Qxh6 {[%emt 0:00:07]} Nf8 {[%emt 0:00:03]} 30. h4 {[%emt 0:01:19]} Nb6 {[%emt 0:01:25]} 31. h5 {[%emt 0:01:27]} Rxc2 {[%emt 0:02:03]} 32. Bxc2 {[%emt 0:00:04]} Nc8 {[%emt 0:02:16]} 33. hxg6 {[%emt 0:02:24]} fxg6 {[%emt 0:00:01]} 34. Bxg6 {[%emt 0:00:25]} Qg7 {[%emt 0:00:32]} 35. Qxg7+ {[%emt 0:00:43]} Kxg7 {[%emt 0:00:01]} 36. Bd3 {[%emt 0:01:00]} Nb6 {[%emt 0:01:16]} 37. b3 {[%emt 0:02:07]} Ng6 {[%emt 0:00:30]} 38. Bxg6 {[%emt 0:00:48]} Kxg6 {[%emt 0:00:01]} 39. Ke2 {[%emt 0:00:20]} a5 {[%emt 0:00:14]} 40. Nd2 {[%emt 0:00:00]} Kf5 {[%emt 0:00:00]} 41. Kd3 {[%emt 0:03:33]} Nc8 {[%emt 0:01:07]} 42. Nb1 {[%emt 0:01:20]} b4 {[%emt 0:01:14]} 43. axb4 {[%emt 0:01:07]} axb4 {[%emt 0:00:02]} 44. Nd2 {[%emt 0:00:18]} Na7 {[%emt 0:00:11]} 45. Nf1 {[%emt 0:01:47]} Nb5 {[%emt 0:00:23]} 46. Ne3+ {[%emt 0:00:09]} Kg5 {[%emt 0:00:47]} 47. Nc2 {[%emt 0:00:11]} 1-0

[Event "Maria Albulet Memorial 2018"]
[Site "Braila"]
[Date "2018.11.04"]
[Round "2"]
[White "Didiliuc, Dariana-Gabriela"]
[Black "Uzuneanu, Gabriela"]
[Result "1-0"]
[ECO "A43"]
[WhiteElo "1784"]
[BlackElo "1571"]
[Annotator "NA RC"]
[PlyCount "73"]
[EventDate "2018.11.03"]
[EventType "swiss"]
[EventCountry "ROU"]
[SourceTitle "playchess.com"]
[Source "ChessBase"]
[SourceQuality "1"]
[TimeControl "40/5400+30:900+30"]

1. d4 {[%emt 0:00:00]} c5 {[%emt 0:00:00]} 2. d5 {[%emt 0:00:00]} b5 {[%emt 0:00:00]} 3. e4 {[%emt 0:00:09]} a6 {[%emt 0:00:00]} 4. a4 {[%emt 0:00:36]} b4 {[%emt 0:00:00]} 5. Bc4 {[%emt 0:00:35]} d6 {[%emt 0:01:13]} 6. f4 {[%emt 0:00:37]} Nd7 {[%emt 0:01:50]} 7. Nf3 {[%emt 0:01:38]} g6 {[%emt 0:00:32]} 8. O-O {[%emt 0:00:57]} Bg7 {[%emt 0:00:28]} 9. a5 {[%emt 0:01:06]} Nh6 {[%emt 0:11:04]} 10. Qe2 {[%emt 0:01:41]} O-O {[%emt 0:13:00]} 11. Nbd2 {[%emt 0:05:29]} f6 {[%emt 0:14:10]} 12. b3 {[%emt 0:01:19]} Nf7 {[%emt 0:03:03]} 13. Bb2 {[%emt 0:00:36]} Qc7 {[%emt 0:06:48]} 14. Bd3 {[%emt 0:06:09]} Bb7 {[%emt 0:02:37]} 15. Nc4 {[%emt 0:04:05]} Rfe8 {[%emt 0:09:19]} 16. Nh4 {[%emt 0:01:53]} Rf8 {[%emt 0:13:31]} 17. Qg4 {[%emt 0:03:05]} Nh6 {[%emt 0:02:03]} 18. Qg3 {[%emt 0:02:53]} Rf7 {[%emt 0:03:32]} 19. f5 {[%emt 0:11:10]} g5 {[%emt 0:00:44]} 20. Nf3 {[%emt 0:00:23]} Rff8 {[%emt 0:00:26]} 21. Nxg5 {[%emt 0:01:50]} Qc8 {[%emt 0:04:26]} 22. Ne6 {[%emt 0:01:15]} Rf7 {[%emt 0:00:06]} 23. Be2 {[%emt 0:00:13]} Kh8 {[%emt 0:01:18]} 24. Bh5 {[%emt 0:00:20]} Qg8 {[%emt 0:00:15]} 25. Bxf7 {[%emt 0:04:13]} Qxf7 {[%emt 0:00:06]} 26. Rf4 {[%emt 0:00:35]} Rg8 {[%emt 0:00:25]} 27. Qh3 {[%emt 0:01:08]} Nf8 {[%emt 0:00:59]} 28. Nd8 {[%emt 0:01:59]} Qe8 {[%emt 0:01:19]} 29. Nxb7 {[%emt 0:00:07]} Qb8 {[%emt 0:00:40]} 30. Nbxd6 {[%emt 0:05:30]} exd6 {[%emt 0:00:20]} 31. Rh4 {[%emt 0:00:19]} Nf7 {[%emt 0:00:16]} 32. Rg4 {[%emt 0:00:26]} Nd7 {[%emt 0:01:09]} 33. Qh5 {[%emt 0:03:00]} Qf8 {[%emt 0:02:36]} 34. Rd1 {[%emt 0:02:51]} h6 {[%emt 0:02:20]} 35. Rd3 {[%emt 0:02:00]} Ng5 {[%emt 0:01:28]} 36. Rxg5 {[%emt 0:00:11]} fxg5 {[%emt 0:00:20]} 37. Qxh6# {[%emt 0:00:07]} 1-0

[Event "Maria Albulet Memorial 2018"]
[Site "Braila"]
[Date "2018.11.05"]
[Round "4"]
[White "Didiliuc, Dariana-Gabriela"]
[Black "Ciolacu, Alessia-Mihaela"]
[Result "0-1"]
[ECO "E34"]
[WhiteElo "1784"]
[BlackElo "1972"]
[Annotator "NA RC"]
[PlyCount "138"]
[EventDate "2018.11.03"]
[EventType "swiss"]
[EventCountry "ROU"]
[SourceTitle "playchess.com"]
[Source "ChessBase"]
[SourceQuality "1"]
[TimeControl "40/5400+30:900+30"]

{[%evp 8,138,24,0,27,16,13,18,18,-7,0,-21,-23,-29,-23,-36,-29,-39,-37,-30,-20,-24,-17,-11,-21,-29,-22,-39,-15,-33,-12,-22,-7,-20,-8,-20,20,32767,-13,-45,-38,-33,-22,-30,-28,-26,0,-21,-10,-14,0,-8,-14,-8,0,-13,-8,-74,0,0,0,-52,-34,-33,-16,-32,-17,-54,-29,-76,-36,-77,-71,-73,-83,-75,-71,-79,-79,-89,-97,-98,-98,-78,-89,-146,32767,-131,-97,-102,-106,-162,-142,-214,-96,-146,-204,-223,-236,-262,-251,32767,32767,32767,32767,-421,-537,-328,-272,-579,-435,-294,-531,-479,-711,-6325,-29980,-6187,-29978,-29973,-29982,-29983,32767,32767,32767,32767,-29987,32767,32767,32767,32767,32767,-29994]} 1. d4 {[%emt 0:08:24]} Nf6 {[%emt 0:00:00]} 2. c4 {[%emt 0:00:10]} e6 {[%emt 0:00:00]} 3. Nc3 {[%emt 0:00:24]} Bb4 {[%emt 0:00:25]} 4. Qc2 {[%emt 0:00:20]} d5 {[%emt 0:00:17]} 5. cxd5 {[%emt 0:01:08]} Qxd5 {[%emt 0:00:31]} 6. Nf3 {[%emt 0:01:23]} Qf5 {[%emt 0:00:45]} 7. Qxf5 {[%emt 0:21:21]} exf5 {[%emt 0:01:21]} 8. Bd2 {[%emt 0:00:14]} c6 {[%emt 0:00:40] E34: Nimzo-Indian: Classical: 4...d5} 9. e3 {[%emt 0:00:57]} Nbd7 {[%emt 0:01:24]} 10. Bd3 {[%emt 0:00:32] LiveBook: 12 Games} Nb6 {[%emt 0:00:50]} 11. Nh4 $146 {[%emt 0:02:26]} ({Predecessor:} 11. a3 Bd6 12. O-O O-O 13. Rfc1 a5 14. Rab1 a4 15. b4 axb3 16. Rxb3 {½-½ (31) Zhou,W (2590)-Bu,X (2662) China 2013}) 11... g6 {[%emt 0:00:57]} 12. O-O {[%emt 0:05:28]} Be6 {[%emt 0:02:04]} 13. Rfd1 {[%emt 0:01:58]} Be7 {[%emt 0:06:52]} 14. Nf3 {[%emt 0:01:15]} Nfd5 {[%emt 0:01:45]} 15. b3 {[%emt 0:00:55]} O-O {[%emt 0:04:06]} 16. Ne2 {[%emt 0:03:55]} a5 {[%emt 0:04:33]} 17. a3 {[%emt 0:07:00]} f6 {[%emt 0:09:03]} 18. Bc1 {[%emt 0:03:16]} Kg7 {[%emt 0:01:26]} 19. Bb2 {[%emt 0:00:29]} a4 {[%emt 0:14:44]} 20. b4 {[%emt 0:01:13]} Nc7 {[%emt 0:04:40]} 21. Nd2 {[%emt 0:00:19]} Nb5 {[%emt 0:00:32]} 22. Nf4 {[%emt 0:01:10]} Bf7 {[%emt 0:00:28]} 23. Bc2 {[%emt 0:01:37]} Nd6 {[%emt 0:03:42]} 24. Nd3 {[%emt 0:02:49]} Nbc4 {[%emt 0:01:49]} 25. Nxc4 {[%emt 0:02:17]} Nxc4 {[%emt 0:00:12]} 26. Bc3 {[%emt 0:00:09]} b6 {[%emt 0:01:12]} 27. Nb2 {[%emt 0:04:51]} Nxb2 {[%emt 0:06:01]} 28. Bxb2 {[%emt 0:00:05]} Rfe8 {[%emt 0:03:20]} 29. h3 {[%emt 0:08:48]} Bd5 {[%emt 0:01:30]} 30. Bd3 {[%emt 0:00:53]} Bd6 {[%emt 0:01:07]} 31. Rdc1 {[%emt 0:00:48]} Rac8 {[%emt 0:01:17]} 32. Bc2 {[%emt 0:00:15]} Ra8 {[%emt 0:00:25]} 33. Bd3 {[%emt 0:00:23]} Rac8 {[%emt 0:02:10]} 34. Bc2 {[%emt 0:08:31]} b5 {[%emt 0:00:59]} 35. Re1 {[%emt 0:01:48]} Rc7 {[%emt 0:00:56]} 36. Re2 {[%emt 0:01:00]} Bc4 {[%emt 0:00:37]} 37. Rd2 {[%emt 0:00:19]} Rce7 {[%emt 0:00:47]} 38. Bd3 {[%emt 0:02:42]} Bd5 {[%emt 0:00:14]} 39. Re1 {[%emt 0:00:23]} f4 {[%emt 0:07:25]} 40. Rde2 {[%emt 0:00:00]} fxe3 {[%emt 0:00:00]} 41. Rxe3 {[%emt 0:02:28]} Rxe3 {[%emt 0:03:58]} 42. fxe3 {[%emt 0:00:34]} Bg3 {[%emt 0:00:29]} 43. Re2 {[%emt 0:00:08]} f5 {[%emt 0:00:12]} 44. Bc1 {[%emt 0:02:34]} h5 {[%emt 0:04:50]} 45. Kf1 {[%emt 0:01:02]} Kf6 {[%emt 0:01:29]} 46. Bd2 {[%emt 0:00:36]} h4 {[%emt 0:00:38]} 47. Be1 {[%emt 0:00:06]} Re6 {[%emt 0:02:32]} 48. Bf2 {[%emt 0:00:15]} Ke7 {[%emt 0:00:39]} 49. Re1 {[%emt 0:01:34] [#]} (49. Ke1 $17) 49... Kd6 $1 {[%emt 0:00:44]} 50. Rc1 {[%emt 0:00:44]} Rf6 {[%emt 0:02:39]} (50... f4 $19 51. exf4 Bxf4) 51. Re1 {[%emt 0:01:33] [#]} Be4 $1 {[%emt 0:00:39]} 52. Be2 {[%emt 0:01:40]} f4 {[%emt 0:00:52]} 53. Bf3 {[%emt 0:00:15]} Bxf3 {[%emt 0:02:39]} 54. gxf3 {[%emt 0:00:05]} Bxf2 {[%emt 0:03:21]} 55. Kxf2 {[%emt 0:00:06]} Kd5 {[%emt 0:02:05]} 56. Rd1 $2 {[%emt 0:00:53]} (56. Rc1 $1 $11) 56... fxe3+ {[%emt 0:00:23]} 57. Kxe3 {[%emt 0:00:06] [#]} Kc4 $1 {[%emt 0:01:45]} 58. f4 {[%emt 0:02:30]} Re6+ {[%emt 0:00:39]} 59. Kf3 {[%emt 0:00:05]} Kb3 {[%emt 0:00:03]} 60. Rd3+ {[%emt 0:00:31] [#]} Kc2 $1 {[%emt 0:00:06]} 61. Re3 {[%emt 0:00:36]} Rxe3+ {[%emt 0:00:13]} 62. Kxe3 {[%emt 0:00:06]} Kb3 {[%emt 0:00:04]} 63. Kd3 {[%emt 0:01:04]} Kxa3 {[%emt 0:00:32]} 64. Kc3 {[%emt 0:00:05]} Ka2 {[%emt 0:00:05]} 65. Kc2 {[%emt 0:00:04]} a3 {[%emt 0:00:06]} 66. d5 {[%emt 0:00:18]} cxd5 {[%emt 0:00:04]} 67. f5 {[%emt 0:00:07]} gxf5 {[%emt 0:00:04]} 68. Kc3 {[%emt 0:00:05]} Kb1 {[%emt 0:00:05]} 69. Kb3 {[%emt 0:00:04]} a2 {[%emt 0:00:04]} 0-1

[Event "Maria Albulet Memorial 2018"]
[Site "Braila"]
[Date "2018.11.05"]
[Round "4"]
[White "Uzuneanu, Gabriela"]
[Black "Maria, Lia-Alexandra"]
[Result "1/2-1/2"]
[ECO "B21"]
[WhiteElo "1571"]
[BlackElo "1479"]
[Annotator "NA RC"]
[PlyCount "116"]
[EventDate "2018.11.03"]
[EventType "swiss"]
[EventCountry "ROU"]
[SourceTitle "playchess.com"]
[Source "ChessBase"]
[SourceQuality "1"]
[TimeControl "40/5400+30:900+30"]

1. e4 {[%emt 0:00:00]} c5 {[%emt 0:00:00]} 2. f4 {[%emt 0:00:00]} Nc6 {[%emt 0:00:00]} 3. Nf3 {[%emt 0:00:00]} e6 {[%emt 0:00:06]} 4. d3 {[%emt 0:04:42]} Nge7 {[%emt 0:00:23]} 5. Nc3 {[%emt 0:01:13]} g6 {[%emt 0:00:08]} 6. g3 {[%emt 0:00:10]} Bg7 {[%emt 0:00:10]} 7. Bg2 {[%emt 0:00:05]} d6 {[%emt 0:00:34]} 8. Bd2 {[%emt 0:06:07]} Bd7 {[%emt 0:00:11]} 9. O-O {[%emt 0:01:04]} O-O {[%emt 0:00:10]} 10. Rb1 {[%emt 0:03:22]} a6 {[%emt 0:00:40]} 11. Ne2 {[%emt 0:01:49]} Rb8 {[%emt 0:01:27]} 12. Bc3 {[%emt 0:06:14]} b5 {[%emt 0:03:23]} 13. Bxg7 {[%emt 0:00:39]} Kxg7 {[%emt 0:00:07]} 14. Qd2 {[%emt 0:02:48]} Qb6 {[%emt 0:01:48]} 15. Kh1 {[%emt 0:02:58]} b4 {[%emt 0:01:17]} 16. h3 {[%emt 0:05:42]} a5 {[%emt 0:03:05]} 17. g4 {[%emt 0:05:44]} f5 {[%emt 0:00:15]} 18. Ng3 {[%emt 0:00:46]} Rbe8 {[%emt 0:03:01]} 19. Rbe1 {[%emt 0:01:37]} Qc7 {[%emt 0:07:30]} 20. Nh2 {[%emt 0:16:01]} Nd4 {[%emt 0:06:37]} 21. Ne2 {[%emt 0:00:29]} Nec6 {[%emt 0:01:00]} 22. c3 {[%emt 0:04:36]} Nxe2 {[%emt 0:00:10]} 23. Rxe2 {[%emt 0:00:04]} Kg8 {[%emt 0:01:23]} 24. Qe1 {[%emt 0:03:43]} Na7 {[%emt 0:07:07]} 25. Rc2 {[%emt 0:06:55]} Qb8 {[%emt 0:01:44]} 26. Qd2 {[%emt 0:05:26]} Ba4 {[%emt 0:05:48]} 27. b3 {[%emt 0:00:10]} Bd7 {[%emt 0:01:30]} 28. Nf3 {[%emt 0:01:00]} Nb5 {[%emt 0:03:41]} 29. c4 {[%emt 0:03:11]} Nc7 {[%emt 0:00:59]} 30. e5 {[%emt 0:01:16]} Na6 {[%emt 0:04:01]} 31. Re1 {[%emt 0:02:49]} Bc6 {[%emt 0:07:05]} 32. g5 {[%emt 0:00:42]} d5 {[%emt 0:03:40]} 33. Qf2 {[%emt 0:00:54]} dxc4 {[%emt 0:01:34]} 34. dxc4 {[%emt 0:00:26]} Be4 {[%emt 0:01:26]} 35. Rd2 {[%emt 0:00:24]} Rd8 {[%emt 0:00:41]} 36. Red1 {[%emt 0:00:14]} Rxd2 {[%emt 0:01:10]} 37. Qxd2 {[%emt 0:02:21]} Qb7 {[%emt 0:02:41]} 38. Qf2 {[%emt 0:00:27]} Qa8 {[%emt 0:01:55]} 39. Ne1 {[%emt 0:00:00]} Bxg2+ {[%emt 0:00:00]} 40. Nxg2 {[%emt 0:00:00]} Rd8 {[%emt 0:00:00]} 41. Rd2 {[%emt 0:04:17]} Qc8 {[%emt 0:03:25]} 42. Ne1 {[%emt 0:00:39]} Rd7 {[%emt 0:01:17]} 43. Rd3 {[%emt 0:00:48]} Qd8 {[%emt 0:01:15]} 44. Qd2 {[%emt 0:00:50]} Rxd3 {[%emt 0:01:41]} 45. Qxd3 {[%emt 0:00:10]} Qxd3 {[%emt 0:00:04]} 46. Nxd3 {[%emt 0:00:03]} Kg7 {[%emt 0:00:34]} 47. Kg2 {[%emt 0:01:05]} h6 {[%emt 0:00:25]} 48. h4 {[%emt 0:00:04]} h5 {[%emt 0:00:55]} 49. Nb2 {[%emt 0:00:39]} Kf7 {[%emt 0:00:37]} 50. Na4 {[%emt 0:01:10]} Ke7 {[%emt 0:00:18]} 51. Kf2 {[%emt 0:00:09]} Kd7 {[%emt 0:00:43]} 52. Ke2 {[%emt 0:00:19]} Kc6 {[%emt 0:00:49]} 53. Ke3 {[%emt 0:00:28]} Nb8 {[%emt 0:00:34]} 54. Ke2 {[%emt 0:00:05]} Nd7 {[%emt 0:00:26]} 55. Kd3 {[%emt 0:00:04]} Nb6 {[%emt 0:00:18]} 56. Nxb6 {[%emt 0:00:26]} Kxb6 {[%emt 0:00:09]} 57. Ke3 {[%emt 0:00:04]} a4 {[%emt 0:00:18]} 58. Kd3 {[%emt 0:00:05]} Ka5 {[%emt 0:00:18] Ke4} 1/2-1/2

[Event "Maria Albulet Memorial 2018"]
[Site "Braila"]
[Date "2018.11.09"]
[Round "8"]
[White "Mihailova, Alina"]
[Black "Uzuneanu, Gabriela"]
[Result "1-0"]
[ECO "D35"]
[WhiteElo "1790"]
[BlackElo "1571"]
[Annotator "NA"]
[PlyCount "63"]
[EventDate "2018.11.03"]
[EventType "swiss"]
[EventCountry "ROU"]
[SourceTitle "playchess.com"]
[Source "ChessBase"]
[SourceQuality "1"]
[TimeControl "40/5400+30:900+30"]

1. d4 {[%emt 0:00:00]} d5 {[%emt 0:00:00]} 2. c4 {[%emt 0:00:00]} e6 {[%emt 0:00:00]} 3. Nc3 {[%emt 0:00:51]} Nf6 {[%emt 0:00:00]} 4. cxd5 {[%emt 0:00:59]} Nxd5 {[%emt 0:00:20]} 5. e4 {[%emt 0:00:14]} Nxc3 {[%emt 0:01:01]} 6. bxc3 {[%emt 0:00:02]} Nd7 {[%emt 0:02:09]} 7. Bd3 {[%emt 0:00:34]} Nb6 {[%emt 0:02:36]} 8. Ne2 {[%emt 0:01:31]} Bd7 {[%emt 0:01:46]} 9. Be3 {[%emt 0:02:42]} Rc8 {[%emt 0:01:54]} 10. O-O {[%emt 0:01:24]} c5 {[%emt 0:00:43]} 11. f4 {[%emt 0:10:30]} Be7 {[%emt 0:02:58]} 12. Ng3 {[%emt 0:02:04]} cxd4 {[%emt 0:16:27]} 13. cxd4 {[%emt 0:01:01]} Nc4 {[%emt 0:00:16]} 14. Bxc4 {[%emt 0:13:41]} Rxc4 {[%emt 0:00:32]} 15. Qg4 {[%emt 0:01:26]} g6 {[%emt 0:00:56]} 16. f5 {[%emt 0:08:13]} exf5 {[%emt 0:02:18]} 17. exf5 {[%emt 0:01:24]} Qc8 {[%emt 0:00:34]} 18. Rae1 {[%emt 0:01:21]} Kd8 {[%emt 0:10:21]} 19. Bg5 {[%emt 0:03:48]} f6 {[%emt 0:00:09]} 20. Rxe7 {[%emt 0:08:01]} Kxe7 {[%emt 0:05:26]} 21. Qe4+ {[%emt 0:00:15]} Kd8 {[%emt 0:04:38]} 22. Bxf6+ {[%emt 0:00:13]} Kc7 {[%emt 0:00:03]} 23. Qe5+ {[%emt 0:00:12]} Kb6 {[%emt 0:00:09]} 24. Bxh8 {[%emt 0:00:51]} gxf5 {[%emt 0:02:47]} 25. Bf6 {[%emt 0:08:37]} Ra4 {[%emt 0:02:02]} 26. Rb1+ {[%emt 0:04:24]} Ka6 {[%emt 0:00:20]} 27. Qe2+ {[%emt 0:03:38]} Ka5 {[%emt 0:00:12]} 28. Nxf5 {[%emt 0:01:17]} Qf8 {[%emt 0:02:22]} 29. Qe5+ {[%emt 0:01:13]} Ka6 {[%emt 0:00:15]} 30. Nd6 {[%emt 0:00:50]} b6 {[%emt 0:00:40]} 31. Qe2+ {[%emt 0:00:13]} Ka5 {[%emt 0:00:05]} 32. Nb7# {[%emt 0:00:05]} 1-0